Cogmind - Beta 16 @@@ ROGUE MODE // 2025.12.14 @ 11:23:36 Player: Jamba27 Result: Destroyed by as-53531 with Assembled Heavy Rifle Performance ------------- Evolutions (0) 0 Regions Visited (2) 400 Robots Destroyed (27) 135 Value Destroyed (509) 509 Prototype IDs (0) 0 Alien Tech Used (0) 0 Bonus (0) 0 TOTAL SCORE: 1044 Bonus ------- None Cogmind --------- Core Integrity 0/250 Matter 168/300 Energy 125/125 System Corruption 1% Temperature Cool (0) Movement Rolling (135) Ox3 Location -10/Mines Parts ------- > --- POWER (1) -------- Light Ion Engine > --- PROPULSION (2) --- Armored Wheel Armored Wheel > --- UTILITY (2) ------ Huge Storage Unit Medium Armor Plating > --- WEAPON (2) ------- Heavy Assault Rifle Mini Grenade Launcher > --- INVENTORY (25) --- Light Ion Engine Light Ion Engine Light Angular Momentum Engine Light Treads Light Treads Armored Wheel Armored Wheel Armored Wheel Armored Wheel Armored Wheel Heat Sink Large Storage Unit Visual Processing Unit Improved Terrain Scanner Terrain Scan Processor Targeting Computer Medium Armor Plating Assault Rifle Light Assault Rifle Heavy Assault Rifle Shotgun Mining Laser Peak State ------------ > --- POWER ------------ Light Ion Engine > --- PROPULSION ------- Armored Wheel Armored Wheel > --- UTILITY ---------- Huge Storage Unit Improved Terrain Scanner > --- WEAPON ----------- Heavy Assault Rifle Heavy Assault Rifle > --- INVENTORY -------- Light Ion Engine Light Ion Engine Light Treads Light Treads Armored Wheel Armored Wheel Armored Wheel Armored Wheel Armored Wheel Armored Wheel Heat Sink Large Storage Unit Medium Armor Plating Medium Armor Plating Assault Rifle Light Assault Rifle Heavy Assault Rifle Heavy Assault Rifle Shotgun [Rating: 16] Favorites ----------- Power Light Ion Engine Engine Light Ion Engine Propulsion Armored Wheel Treads Light Treads Wheel Armored Wheel Utility Huge Storage Unit Device Improved Terrain Scanner Storage Huge Storage Unit Protection Medium Armor Plating Weapon Heavy Assault Rifle Ballistic Gun Heavy Assault Rifle Launcher Mini Grenade Launcher Build | -11 -10 -10 ------- Run | Yrd Mat Min Slots Evolved . | . . . Power . | . . . Propulsion . | . . . Utility . | . . . Weapon . | . . . Parts Attached 20 | 7 10 3 Power 2 | 1 1 . Engine 2 | 1 1 . Core . | . . . Reactor . | . . . Propulsion 5 | 2 2 1 Treads 2 | 2 . . Leg . | . . . Wheel 3 | . 2 1 Hover . | . . . Flight . | . . . Utility 5 | 2 3 . Device 1 | 1 . . Storage 3 | 1 2 . Processor . | . . . Hackware . | . . . Protection 1 | . 1 . Artifact . | . . . Weapon 8 | 2 4 2 Energy Gun . | . . . Energy Cannon . | . . . Ballistic Gun 7 | 2 4 1 Ballistic Cannon . | . . . Launcher 1 | . . 1 Special Weapon . | . . . Impact Weapon . | . . . Slashing Weapon . | . . . Piercing Weapon . | . . . Special Melee Weapon . | . . . Unidentified Prototypes . | . . . Parts Lost 4 | . 3 1 Power 1 | . 1 . Propulsion 1 | . . 1 Utility . | . . . Weapon 2 | . 2 . Highest Loss Streak 3 | . 3 1 To Critical Strikes . | . . . Average Backups 11 | . 10 19 Power 1 | . 1 2 Propulsion 4 | . 3 7 Utility 3 | . 2 6 Weapon 2 | . 3 3 Tool/Special . | . . . Unused Backups 12 | . . 12 Power 3 | . . 3 Propulsion 5 | . . 5 Utility 3 | . . 3 Weapon 1 | . . 1 Tool/Special . | . . . Average Slot Usage (%) 98 | . 98 99 Engine 13 | . 13 14 Treads 5 | . 10 . Wheel 22 | . 17 27 Device 5 | . 10 . Storage 14 | . 14 14 Protection 8 | . 3 14 Ballistic Gun 26 | . 27 26 Peak Build Rating 16 | 9 16 15 Average Rating 12 | 5 12 14 On Entrance 8 | . 9 15 Avg Prop Armor Cover (%) . | . . . Naked Turns . | . . . Heaviest Build 96 | 12 96 96 Greatest Support 40 | 40 40 24 Greatest Overweight (x) 7 | . 3 7 Average Overweight (x) 2 | . 1 3 Largest Inventory Capacity 25 | 8 25 25 Average Capacity 19 | 7 21 25 Most Carried 22 | 1 19 22 Average Carried 11 | . 10 19 Final Capacity 25 | 8 25 25 Final Carried 22 | 1 19 22 Class Distribution -------------------- 100% | Mutant Dominant Class ---------------- Mutant | -10/Materials Mutant | -10/Mines Resources | -11 -10 -10 ----------- Run | Yrd Mat Min Matter Collected 830 | 312 354 164 Remotely . | . . . Salvage Created 795 | 110 489 196 Parts 57 | 7 35 15 Haulers Intercepted . | . . . Recyclers Shooed 1 | . 1 . Parts Field Recycled . | . . . Retrieved Matter . | . . . Parts Self-Destructed . | . . . Prevented . | . . . Parts Restored . | . . . Kills | -11 -10 -10 ------- Run | Yrd Mat Min Combat Hostiles Destroyed 26 | . 13 13 Guns 22 | . 13 9 AOE 4 | . . 4 Classes Destroyed 7 | 1 5 1 Builder 2 | . 1 1 Tunneler 5 | 5 . . Recycler 1 | . 1 . Watcher 1 | . 1 . Swarmer 9 | . 6 3 Grunt 9 | . 7 2 Assembled 8 | . . 8 Best Kill Streak 6 | 2 6 6 Combat Bots Only 5 | . 3 5 Max Kills in Single Turn 2 | 1 1 2 Gunslinging 1 | . . 1 Exploded 2 | . . 2 Melee . | . . . Uniques/NPCs Destroyed . | . . . Combat | -11 -10 -10 -------- Run | Yrd Mat Min Hostile Shots Fired 149 | . 105 44 Missed 47 | . 31 16 Hits 102 | . 74 28 Projectile 102 | . 74 28 Damage Taken 1157 | . 756 401 Core 250 | . 171 79 Absorbed by Shields . | . . . Core Remaining (%) 100 | 100 . . Volleys Fired 100 | 20 55 25 Largest 2 | 2 2 2 Hottest 53 | 40 46 53 Shots Fired 189 | 40 101 48 Gun 184 | 40 101 43 Cannon . | . . . Launcher 5 | . . 5 Special . | . . . Kinetic 184 | 40 101 43 Thermal . | . . . Explosive 5 | . . 5 Electromagnetic . | . . . Robot Hit Streak 10 | 10 9 7 Robot Miss Streak 8 | 3 4 8 Penetration Max . | . . . Secondary Targets 5 | . 3 2 Max Gunslinging Chain 1 | . 1 1 Shots Hit Robots 117 | 28 63 26 Core Hits 48 | 8 20 20 Critical Kills . | . . . Critical Parts Destroyed 1 | . 1 . Critical Strikes 1 | . 1 . Destroy 1 | . 1 . Melee Attacks . | . . . Impact . | . . . Slashing . | . . . Piercing . | . . . Sneak Attacks . | . . . Combat Hostiles . | . . . Follow-up Attacks . | . . . Damage Inflicted 1846 | 283 953 610 Guns 1620 | 283 953 384 Cannons . | . . . Explosions 226 | . . 226 Melee . | . . . Ramming . | . . . Kinetic 1620 | 283 953 384 Thermal . | . . . Explosive 226 | . . 226 Electromagnetic . | . . . Impact . | . . . Slashing . | . . . Piercing . | . . . Highest Corruption 1 | . 1 1 Average Corruption 1 | . 1 1 Corruption Purged . | . . . Corruption Blocked . | . . . Effects 5 | . 1 4 Message Errors 1 | . . 1 Matter Fused 3 | . 1 2 Data Loss (minor) 1 | . . 1 Overload Shots . | . . . Overflow Damage 16 | . . 16 Projectiles . | . . . Explosions 16 | . . 16 Melee . | . . . Knockbacks . | . . . Impact . | . . . Kinetic . | . . . Secondary . | . . . Self-Inflicted Damage 29 | . . 29 Shots 1 | . . 1 Rammed . | . . . Targets Rammed . | . . . Kicked . | . . . Crushed . | . . . Highest Temperature 40 | . 40 15 Average Temperature 11 | . 13 7 Received Heat Transfer 344 | . 285 59 Siege Activations . | . . . Martial Activations . | . . . Shielding Activations . | . . . Robots Disrupted . | . . . Combat Hostiles . | . . . Robots Corrupted . | . . . Combat Hostiles . | . . . Parts Fried . | . . . Impact Corruptions . | . . . Robots Melted . | . . . Combat Hostiles . | . . . Parts Melted . | . . . Heat Transferred . | . . . Parts Sabotaged . | . . . Parts Stolen . | . . . Parts Stripped . | . . . Power Chain Reactions . | . . . Alert | -11 -10 -10 ------- Run | Yrd Mat Min Maximum Alert Level . | . . . Low Security (%) 100 | 100 100 100 Level 1 . | . . . Level 2 . | . . . Level 3 . | . . . Level 4 . | . . . Level 5 . | . . . High Security . | . . . Max Security . | . . . Peak Influence 169 | 10 169 109 Initial 59 | . . 59 Average 42 | . 65 39 Influence Increases 579 | 25 383 171 Destroy 0b10 Robot/C 360 | . 260 100 Destroy 0b10 Robot/NC 45 | 25 15 5 Destroy Leader 72 | . 52 20 Allied During Kill 4 | . . 4 Successful Hack 25 | . 25 . Disable Machine 30 | . 15 15 Destroy Structure 28 | . 1 27 Lose Combat Pursuer 15 | . 15 . Influence Decreases 536 | 25 230 281 Entered New Map 94 | . . 94 Time Decay 382 | 25 200 157 Lost Part 40 | . 30 10 Lost Ally 20 | . . 20 Squads Dispatched 3 | . 3 . Investigation 2 | . 2 . Extermination . | . . . Reinforcement 1 | . 1 . Assault . | . . . Garrison . | . . . Intercept . | . . . Searches Triggered . | . . . Construction Impeded . | . . . Haulers Reinforced . | . . . Active Scanning Responses . | . . . Cargo Convoy Interrupts . | . . . Stealth | -11 -10 -10 --------- Run | Yrd Mat Min Distress Signals 2 | . 2 . Communications Jammed . | . . . Distress Signals . | . . . Times Spotted 40 | . 20 20 Peak Tracking Total 12 | . 6 12 Tactical Retreats 1 | . 1 . Traps | -11 -10 -10 ------- Run | Yrd Mat Min Traps Triggered 1 | . 1 . Indirectly . | . . . Trap Hack Attempts . | . . . Triggered . | . . . Disarmed . | . . . Reprogrammed . | . . . Reused . | . . . Traps Extracted . | . . . Installed . | . . . Triggered . | . . . Machines | -11 -10 -10 ---------- Run | Yrd Mat Min Machines Disabled 2 | . 1 1 Max in Single Turn 1 | . 1 . Machines Repaired . | . . . Machines Dismantled . | . . . Machines Sabotaged . | . . . Overloaded Fab Kills . | . . . Hacking | -11 -10 -10 --------- Run | Yrd Mat Min Machines Accessed 2 | . 2 . Terminals 2 | . 2 . Fabricators . | . . . Repair Stations . | . . . Recycling Units . | . . . Scanalyzers . | . . . Garrison Access . | . . . Total Hacks 11 | . 11 . Successful 4 | . 4 . Failed 7 | . 7 . Catastrophic . | . . . Database Lockouts . | . . . Manual 4 | . 4 . Terminals 11 | . 11 . Fabricators . | . . . Repair Stations . | . . . Recycling Units . | . . . Scanalyzers . | . . . Garrison Access . | . . . Terminal Hacks 3 | . 3 . Robot Analysis 2 | . 2 . Zone Layout 1 | . 1 . Fabricator Hacks . | . . . Repair Station Hacks . | . . . Recycling Unit Hacks . | . . . Scanalyzer . | . . . Garrison Access Hacks . | . . . Unauthorized Hacks 1 | . 1 . Terminals 1 | . 1 . Botnet 1 | . 1 . Fabricators . | . . . Repair Stations . | . . . Recycling Units . | . . . Scanalyzers . | . . . Garrison Access . | . . . Data Cores Recovered . | . . . Used . | . . . Hacking Detections 2 | . 2 . Full Trace Events 1 | . 1 . Feedback Events 1 | . 1 . Corruption 1 | . 1 . Feedback Blocked . | . . . Robot Schematics Acquired . | . . . Robots Built . | . . . Authchips . | . . . Time . | . . . Total Robot Build Rating . | . . . Part Schematics Acquired . | . . . Parts Built . | . . . Authchips . | . . . Time . | . . . Total Part Build Rating . | . . . Part Studies Acquired . | . . . Parts Repaired . | . . . Time . | . . . Parts Recycled . | . . . Recycled Matter . | . . . Retrieved Matter . | . . . Retrieved Components . | . . . Parts Scanalyzed . | . . . Part Schematics Acquired . | . . . Parts Damaged . | . . . Bothacking | -11 -10 -10 ------------ Run | Yrd Mat Min Used RIF Installer . | . . . Robots Hacked . | . . . Non-combat . | . . . Combat . | . . . Robot Hacks Applied . | . . . Relay Couplers Released . | . . . Fabnet Peak Effective % . | . . . Robots Rewired . | . . . Allies Hacked . | . . . Hacks Repelled . | . . . Allies | -11 -10 -10 -------- Run | Yrd Mat Min Total Allies 1 | . . 1 Largest Group 1 | . . 1 Highest-Rated Group 31 | . . 31 Highest-Rated Ally 31 | . . 31 Total Orders . | . . . Ally Attacks 7 | . . 7 Total Damage 66 | . . 66 Kills 1 | . . 1 Allies Corrupted . | . . . Allies Melted . | . . . Intel | -11 -10 -10 ------- Run | Yrd Mat Min Active Infowar (turns) 388 | 19 369 . Terrain 388 | 19 369 . Robot Analysis Total 2 | . 2 . Derelict Logs Recovered . | . . . Drone Launches . | . . . Drone Recoveries . | . . . Exploration | -11 -10 -10 ------------- Run | Yrd Mat Min Turns Passed 1141 | 242 481 418 Spaces Moved 547 | 111 196 240 Core 2 | 2 . . Treads 178 | 109 69 . Legs . | . . . Wheels 367 | . 127 240 Hover . | . . . Flight . | . . . Fastest Speed 50 | 50 135 135 Average Speed 143 | 158 143 136 Slowest Speed 195 | 160 160 195 Overloaded Moves . | . . . Propulsion Burnouts . | . . . Robots Hopped . | . . . Potential Cave-ins . | . . . Cave-ins Triggered . | . . . Exploration Rate (%) 31 | 6 32 57 Regions Visited 2 Branch Regions 1 Pre-discovered Areas . | . . . Known Exits Taken . | . . . Unknown Exits Taken 2 | 1 1 . Scrap Searched . | . . . Spaces Dug . | . . . Terrain Destroyed 38 | . . 38 Melee . | . . . Projectile . | . . . AOE 38 | . . 38 Terrain Rammed . | . . . Walls Destroyed . | . . . Machines Disabled . | . . . Actions | -11 -10 -10 --------- Run | Yrd Mat Min Total 714 | 138 292 284 Wait 26 | . 14 12 Move 545 | 110 195 240 Hop . | . . . Pick Up 22 | 1 17 4 Fast Attach 8 | 7 1 . Attach 3 | . 2 1 Detach . | . . . Swap 9 | . 7 2 Drop 1 | . 1 . Fire 100 | 20 55 25 Melee . | . . . Ram . | . . . Kick . | . . . Crush . | . . . Escape Stasis . | . . . Rewire . | . . . Trap . | . . . Miscellaneous . | . . . Route ------- -11/Scrapyard -10/Materials -10/Mines History --------- Turn | Location | Event 15 | -11/Scrapyard | Discovered new exit (range 16) 243 | -11/Scrapyard | Entered Materials 312 | -10/Materials | Build established: Mutant 518 | -10/Materials | Discovered new exit (range 9) 570 | -10/Materials | Core integrity fell below 50% 679 | -10/Materials | Lost 3 parts (1p2w) 724 | -10/Materials | Entered Mines 943 | -10/Mines | Received a Mining Laser from a helpful Derelict 990 | -10/Mines | Assembled infested the area 995 | -10/Mines | Assisted by a Guerilla fighting off Assembled 1103 | -10/Mines | Core integrity fell below 20% 1142 | -10/Mines | Destroyed by as-53531 with Assembled Heavy Rifle Last Messages --------------- 01067_ as-91757 destroyed. 01070_ Arm. Wheel destroyed. 01076_ as-64510 destroyed. 01081_ K-01 Serf collects debris. 01082_ Acquired Lgt. Angular Momentum Engine. 01090_ System corrupted: Matter fused (-9). 01091_ Acquired Terrain Scan Processor. 01092_ Acquired 29 matter. 01099_ Acquired Mni. Grenade Launcher. 01106_ Acquired 47 matter. 01107_ as-36425 destroyed. 01111_ U-05 Engineer lays Concrete. 01120_ as-94193 destroyed. 01120_ Destroyed Welding Torch. 01120_ U-05 Engineer destroyed. 01123_ K-01 Serf collects debris. 01127_ Acquired 9 matter. 01131_ as-93079 destroyed. 01131_ as-29462 destroyed. 01135_ as-43419 destroyed. Map ----- +----------------------------------------------------+ | ????????????????????????????????????? | | ????????????????????????????????????? | | ????????????????????????????????????? | | ????????????????????????????????????? | | ????????????????????????????????????? | | ????????????????????????????????????? | | ????????????????????????????????????? | | ????????????????????????????????????? | | ??????????????????????????? ????????? | | ?????????????????????????? ????????? | | ?????????????????????????? ????????? | | ?????????????????????????? ????????? | | ?????????????????????????? #????????? | | ?????????????????????????? #????? ??? | | ?????????????????????????? #???? ??? | | ?????????????????????????? #??? ???? | | ??????###???????????????## ### ????? | | ??????#" ???????????????# ??????? | | ??????#%#???????????????# ???????? | | ??????#"#???????????????# ##????????? | | ??????# #?????????????### ###???????? | | ?????##=##????????#####=%[ ##??????? | | ???###=* ##??##??## =%=* ##?????? | | ??## =!* ### #### *= ####### | | ??# !%=% # "" # | | ?# | @ """ # | | ?## % % "" ###### # | | ?# | #????# ? | | # ## ##???## # | | ## ###### ##??## | | ?# %a ##????### ##?# | | ?## < ???????## ### | | ??# #????????# ### | | ??# ????????# #?### | | ??# % #????????## ## #???## | | ??# #?????????## #?# #???# | | ??# % #??????????# #?? #??? | | ??### ???????????# #??# #??? | | ????## !%????????????# #???# #??? | | ?????## ????????????# #????# ##??? | | ??????# ????????????# #?????###???? | | ????????!????????????# #???????????? | | ?????????????????????# #???????????# | | ?????????????????????# #??????????## | | ?????????????????????# ###????##### | | ?????????????????????# #???## | | ?????????????????????# #???# | | ?????????????????????### #???# | | ???????????????????????# #??## | | ???????????????????????# #### # | +----------------------------------------------------+ Best States ------------- Heat Dissipation 25 Energy Generation 10 Energy Capacity 125 Matter Stores 290 Matter Capacity 300 Sight Range 16 Terrain Scan Range 16 Terrain Scan Density 10 Armor Coverage 225 Evasion (%) 40 Recoil Reduction 2 Item Schematics ----------------- None Robot Schematics ------------------ None Fabricated ------------ Nothing Repaired ---------- Nothing Studied --------- None Alien Tech Used ----------------- None Achievements -------------- None Challenges ------------ None Game ------ Seed ImprovedParticleProtomatter Manual? 0 Play Time 00:11:50 Cumulative 53.0 hours Start 2025.12.14 @ 11:12:30 End 2025.12.14 @ 11:23:36 Sessions 1 Manual Loads 0 Difficulty Rogue Special Mode None Game No. 40 Rogue 40 Adventurer 0 Explorer 0 Win Type - Total 0 Types 0/0/0/0/0/0/0/0/0/0 Lore% 26 Gallery% 38 Achievement% 33 Wizard Run 0 Options --------- Layout 1 ASCII 0 Keyboard 0 Movement Mouse Keybinds 0 Fullscreen 1 Font 24/Smallcaps Map View 50x35 Zoom Use 0% Tactical HUD 1 Map Filters NONE Filters NONE Steam 1 RUN: 8d3804b6-a44c-4046-8354-28f68e03849d